Cogmind - Beta 14 @@@ ROGUE MODE // 2025.03.11 @ 23:19:45 Player: moonlol Result: Self-destructed Performance ------------- Evolutions (2) 1000 Regions Visited (6) 1200 Robots Destroyed (46) 230 Value Destroyed (980) 980 Prototype IDs (24) 480 Alien Tech Used (0) 0 Bonus (500) 500 TOTAL SCORE: 4390 Bonus ------- Entered Garrisons 200 Aligned with FarCom 300 Cogmind --------- Core Integrity 455/550 Matter 24/300 Energy 150/150 System Corruption 4% Temperature Cool (0) Movement Core (300) Ox5 Location -8/Garrison Parts ------- > --- POWER (1) -------- Micro Nuclear Core > --- PROPULSION (3) --- (None) > --- UTILITY (3) ------ Medium Storage Unit Core Shielding > --- WEAPON (4) ------- (None) > --- INVENTORY (10) --- Ion Engine Light Ion Engine Light Treads Aluminum Leg Heat Sink High-capacity Storage Unit Shock Rifle Small Laser Heavy Rocket Launcher Remote Datajack Peak State ------------ > --- POWER ------------ Micro Nuclear Core > --- PROPULSION ------- Light Treads Light Treads Armored Treads > --- UTILITY ---------- Medium Storage Unit Core Shielding Light Armor Plating > --- WEAPON ----------- XL Autogun Array > --- INVENTORY -------- Ion Engine Light Ion Engine Light Treads Aluminum Leg Heat Sink High-capacity Storage Unit Shock Rifle Small Laser Advanced Beam Cannon Heavy Rocket Launcher [Rating: 49] Favorites ----------- Power Ion Engine Engine Ion Engine Power Core Micro Nuclear Core Propulsion Aluminum Leg Treads Light Treads Leg Aluminum Leg Wheel Compact Wheel Utility Medium Storage Unit Device Seismic Detector Storage Medium Storage Unit Hackware Hacking Suite Protection Core Shielding Weapon Advanced Beam Cannon Energy Gun Small Laser Energy Cannon Advanced Beam Cannon Ballistic Gun XL Autogun Array Launcher Grenade Launcher Build | -11 -10 -10 -10 -9 -8 -8 ------- Run | Yrd Mat Min Exi Min Mat Gar Slots Evolved 4 | . . . . . 4 . Power . | . . . . . . . Propulsion 1 | . . . . . 1 . Utility 1 | . . . . . 1 . Weapon 2 | . . . . . 2 . Parts Attached 56 | 7 8 1 . 9 24 7 Power 7 | 1 . . . 2 2 2 Engine 4 | 1 . . . 1 2 . Core 3 | . . . . 1 . 2 Reactor . | . . . . . . . Propulsion 17 | 2 1 . . 1 13 . Treads 10 | . . . . . 10 . Leg 4 | 2 1 . . 1 . . Wheel 3 | . . . . . 3 . Hover . | . . . . . . . Flight . | . . . . . . . Utility 11 | 2 3 . . 1 5 . Device 2 | 1 . . . . 1 . Storage 4 | 1 3 . . . . . Processor . | . . . . . . . Hackware 1 | . . . . . 1 . Protection 4 | . . . . 1 3 . Artifact . | . . . . . . . Weapon 21 | 2 4 1 . 5 4 5 Energy Gun 5 | 2 . . . 1 1 1 Energy Cannon 7 | . 3 1 . 2 . 1 Ballistic Gun 4 | . . . . . 2 2 Ballistic Cannon . | . . . . . . . Launcher 5 | . 1 . . 2 1 1 Special Weapon . | . . . . . . . Impact Weapon . | . . . . . . . Slashing Weapon . | . . . . . . . Piercing Weapon . | . . . . . . . Special Melee Weapon . | . . . . . . . Unidentified Prototypes 1 | . 1 . . . . . Parts Lost 11 | . . . . 3 2 6 Power 2 | . . . . 2 . . Propulsion 5 | . . . . . 2 3 Utility 1 | . . . . . . 1 Weapon 3 | . . . . 1 . 2 Highest Loss Streak 3 | . . . . 2 1 3 To Critical Strikes . | . . . . . . . Average Slot Usage (%) 85 | . 100 100 100 89 64 68 Engine 10 | . 14 14 14 5 8 5 Core 1 | . . . . 5 . 3 Treads 7 | . . . . . 11 27 Leg 18 | . 28 28 28 28 6 . Wheel 1 | . . . . . 4 . Device 7 | . 14 14 14 8 . . Storage 12 | . 14 14 14 14 9 9 Protection 5 | . . . . 5 11 14 Energy Cannon 14 | . 23 28 28 14 . . Ballistic Gun 3 | . . . . . 8 7 Launcher 1 | . 3 . . 1 . . Peak Build Rating 49 | 7 12 12 15 16 48 49 Average Rating 22 | 5 11 12 13 13 41 40 On Entrance 14 | . 7 12 12 15 12 46 Naked Turns . | . . . . . . . Heaviest Build 35 | 13 24 26 26 26 32 35 Greatest Support 60 | 20 20 20 20 20 60 60 Greatest Overweight (x) 3 | 3 1 1 1 2 3 . Average Overweight (x) . | . . 1 1 . . . Largest Inventory Capacity 20 | 8 20 10 10 10 10 10 Average Capacity 9 | 7 9 10 10 10 10 10 Most Carried 10 | 4 9 10 10 10 10 10 Average Carried 8 | 3 8 8 9 9 9 9 Final Capacity 10 | 8 10 10 10 10 10 10 Final Carried 10 | 4 9 10 10 10 9 10 Class Distribution -------------------- 62% | Mutant 16% | Skirmisher 8% | Tank 5% | Scavenger-Tank 4% | Scavenger-Mutant Dominant Class ---------------- Mutant | -10/Materials Mutant | -10/Mines Mutant | -10/Exiles Mutant | -9/Mines Skirmisher | -8/Materials Tank | -8/Garrison Resources | -11 -10 -10 -10 -9 -8 -8 ----------- Run | Yrd Mat Min Exi Min Mat Gar Matter Collected 989 | 260 100 10 . 43 437 139 Remotely . | . . . . . . . Salvage Created 1375 | 195 176 90 . 231 532 151 Parts 99 | 16 17 . . 10 39 17 Haulers Intercepted . | . . . . . . . Recyclers Shooed 2 | 1 . . . . 1 . Parts Field Recycled . | . . . . . . . Retrieved Matter . | . . . . . . . Parts Self-Destructed . | . . . . . . . Prevented . | . . . . . . . Kills | -11 -10 -10 -10 -9 -8 -8 ------- Run | Yrd Mat Min Exi Min Mat Gar Combat Hostiles Destroyed 31 | . 5 2 . 8 9 7 Guns 11 | . . . . 1 8 2 Cannons 10 | . 3 2 . 4 . 1 AOE 10 | . 2 . . 3 1 4 Classes Destroyed 11 | 2 3 . . 2 3 1 Builder 4 | . 1 . . . 3 . Tunneler 6 | 6 . . . . . . Recycler 5 | 1 1 . . . 3 . Operator 1 | . . . . . 1 . Watcher 1 | . . . . . 1 . Swarmer 14 | . 3 . . . 7 4 Grunt 9 | . 2 2 . 5 . . Duelist 1 | . . . . 1 . . Sentry 2 | . . . . . 2 . Programmer 3 | . . . . . . 3 Assembled 2 | . . . . 2 . . Best Kill Streak 7 | 3 4 2 . 3 7 4 Combat Bots Only 4 | . 3 2 . 3 4 4 Max Kills in Single Turn 3 | 1 3 1 . 1 2 3 Gunslinging . | . . . . . . . Exploded 3 | . 2 . . 1 1 3 Melee . | . . . . . . . Uniques/NPCs Destroyed . | . . . . . . . Combat | -11 -10 -10 -10 -9 -8 -8 -------- Run | Yrd Mat Min Exi Min Mat Gar Hostile Shots Fired 180 | . 9 11 . 33 39 88 Missed 39 | . 2 1 . 6 10 20 Damage Taken 2032 | . 82 122 . 473 304 1051 Core 292 | . 38 . . 159 7 88 Absorbed by Shields . | . . . . . . . Redirected to Shielding 19 | . . . . . . 19 Core Remaining (%) 60 | 100 . . . 21 . . Volleys Fired 121 | 24 8 7 . 20 23 39 Largest 2 | 2 2 2 . 2 1 2 Hottest 143 | 80 98 136 . 143 60 118 Shots Fired 165 | 48 9 14 . 31 23 40 Gun 92 | 48 . . . 2 21 21 Cannon 61 | . 7 14 . 25 . 15 Launcher 12 | . 2 . . 4 2 4 Special . | . . . . . . . Kinetic 29 | . . . . . 17 12 Thermal 111 | 48 7 14 . 27 . 15 Explosive 12 | . 2 . . 4 2 4 Electromagnetic 13 | . . . . . 4 9 Robot Hit Streak 14 | 8 11 14 . 6 5 8 Robot Miss Streak 5 | 2 . 1 . 2 5 1 Penetration Max . | . . . . . . . Secondary Targets . | . . . . . . . Shots Hit Robots 112 | 35 7 11 . 19 17 23 Core Hits 61 | 8 10 3 . 11 18 11 Critical Kills . | . . . . . . . Critical Parts Destroyed . | . . . . . . . Critical Strikes . | . . . . . . . Melee Attacks . | . . . . . . . Impact . | . . . . . . . Slashing . | . . . . . . . Piercing . | . . . . . . . Sneak Attacks . | . . . . . . . Combat Hostiles . | . . . . . . . Follow-up Attacks . | . . . . . . . Damage Inflicted 3282 | 395 446 226 . 579 696 940 Guns 1351 | 395 . . . 23 618 315 Cannons 1049 | . 144 226 . 372 . 307 Explosions 868 | . 302 . . 183 73 310 Melee . | . . . . . . . Ramming 14 | . . . . 1 5 8 Kinetic 841 | . . . . . 549 292 Thermal 1467 | 395 144 226 . 395 . 307 Explosive 868 | . 302 . . 183 73 310 Electromagnetic 92 | . . . . . 69 23 Impact . | . . . . . . . Slashing . | . . . . . . . Piercing . | . . . . . . . Highest Corruption 4 | . . . . . . 4 Average Corruption 3 | . . . . . . 3 Corruption Purged . | . . . . . . . Corruption Blocked . | . . . . . . . Effects 4 | . . . . . . 4 Message Errors 1 | . . . . . . 1 Matter Fused 1 | . . . . . . 1 Heat Flow Errors 2 | . . . . . . 2 Overload Shots . | . . . . . . . Overflow Damage 81 | . 5 10 . . 18 48 Projectiles 35 | . . 10 . . . 25 Explosions 46 | . 5 . . . 18 23 Melee . | . . . . . . . Knockbacks . | . . . . . . . Impact . | . . . . . . . Kinetic . | . . . . . . . Secondary . | . . . . . . . Self-Inflicted Damage 89 | . 13 . . 25 51 . Shots 3 | . 1 . . 1 1 . Rammed 7 | . . . . . 1 6 Targets Rammed 8 | . . . . 1 1 6 Kicked 1 | . . . . 1 . . Crushed . | . . . . . . . Highest Temperature 646 | 108 178 541 . 646 136 224 Average Temperature 132 | 31 75 278 . 242 43 91 Received Heat Transfer 453 | . 30 69 . 255 9 90 Effects 22 | . . 5 . 16 . 1 Shutdowns 4 | . . 1 . 3 . . Energy Bleed 6 | . . . . 5 . 1 Interference 3 | . . 3 . . . . Short Circuit 3 | . . . . 3 . . Damage (minor) 1 | . . 1 . . . . Damage (major) 4 | . . . . 4 . . Damage (core) 1 | . . . . 1 . . Siege Activations . | . . . . . . . Robots Corrupted . | . . . . . . . Combat Hostiles . | . . . . . . . Parts Fried . | . . . . . . . Impact Corruptions . | . . . . . . . Robots Melted . | . . . . . . . Combat Hostiles . | . . . . . . . Parts Melted 3 | . . 2 . . . 1 Heat Transferred 2534 | 900 259 407 . 679 . 289 Parts Sabotaged . | . . . . . . . Parts Stolen . | . . . . . . . Parts Stripped . | . . . . . . . Power Chain Reactions . | . . . . . . . Alert | -11 -10 -10 -10 -9 -8 -8 ------- Run | Yrd Mat Min Exi Min Mat Gar Peak Influence 320 | 35 185 65 . 165 320 231 Initial 26 | . 22 . . . . 26 Average 84 | 11 67 38 . 86 102 165 Maximum Alert Level 1 | . . . . . 1 1 Low Security (%) 92 | 100 100 100 . 100 86 73 Level 1 7 | . . . . . 13 26 Level 2 . | . . . . . . . Level 3 . | . . . . . . . Level 4 . | . . . . . . . Level 5 . | . . . . . . . High Security . | . . . . . . . Max Security . | . . . . . . . Squads Dispatched 3 | . 1 1 . . 1 . Investigation 3 | . 1 1 . . 1 . Extermination . | . . . . . . . Reinforcement . | . . . . . . . Assault . | . . . . . . . Garrison . | . . . . . . . Intercept . | . . . . . . . Searches Triggered . | . . . . . . . Construction Impeded . | . . . . . . . Haulers Reinforced . | . . . . . . . Active Scanning Responses . | . . . . . . . Cargo Convoy Interrupts . | . . . . . . . Stealth | -11 -10 -10 -10 -9 -8 -8 --------- Run | Yrd Mat Min Exi Min Mat Gar Distress Signals 1 | . 1 . . . . . Communications Jammed . | . . . . . . . Distress Signals . | . . . . . . . Times Spotted 36 | . 6 2 . 6 13 9 Peak Tracking Total 6 | . 3 2 . 2 4 6 Tactical Retreats 1 | . . . . . . 1 Traps | -11 -10 -10 -10 -9 -8 -8 ------- Run | Yrd Mat Min Exi Min Mat Gar Traps Triggered 4 | . 1 . . . 3 . Indirectly . | . . . . . . . Trap Hack Attempts . | . . . . . . . Triggered . | . . . . . . . Disarmed 1 | . . . . . 1 . Reprogrammed . | . . . . . . . Reused . | . . . . . . . Traps Extracted . | . . . . . . . Installed . | . . . . . . . Triggered . | . . . . . . . Most Traps Carried 2 | . . 2 2 . . . Machines | -11 -10 -10 -10 -9 -8 -8 ---------- Run | Yrd Mat Min Exi Min Mat Gar Machines Disabled 5 | . . 1 . . 2 2 Max in Single Turn 2 | . . 1 . . 1 2 Machines Repaired . | . . . . . . . Machines Dismantled . | . . . . . . . Machines Sabotaged . | . . . . . . . Overloaded Fab Kills . | . . . . . . . Hacking | -11 -10 -10 -10 -9 -8 -8 --------- Run | Yrd Mat Min Exi Min Mat Gar Machines Accessed 7 | . . 1 1 . 5 . Terminals 4 | . . . . . 4 . Fabricators . | . . . . . . . Repair Stations . | . . . . . . . Recycling Units . | . . . . . . . Scanalyzers . | . . . . . . . Garrison Access 1 | . . . . . 1 . Total Hacks 22 | . . 1 1 . 20 . Successful 10 | . . 1 1 . 8 . Failed 12 | . . . . . 12 . Catastrophic 4 | . . . . . 4 . Database Lockouts . | . . . . . . . Manual 14 | . . . 1 . 13 . Terminals 19 | . . . . . 19 . Fabricators . | . . . . . . . Repair Stations . | . . . . . . . Recycling Units . | . . . . . . . Scanalyzers . | . . . . . . . Garrison Access 1 | . . . . . 1 . Terminal Hacks 9 | . . 1 1 . 7 . Open Door 1 | . . 1 . . . . Branch Access Points 1 | . . . . . 1 . Alert Level 1 | . . . . . 1 . Unreport Threat 1 | . . . . . 1 . Locate Traps 1 | . . . . . 1 . Disarm Traps 2 | . . . . . 2 . Zone Layout 1 | . . . . . 1 . Derelict Proto ID Bank 1 | . . . 1 . . . Fabricator Hacks . | . . . . . . . Repair Station Hacks . | . . . . . . . Recycling Unit Hacks . | . . . . . . . Scanalyzer . | . . . . . . . Garrison Access Hacks 1 | . . . . . 1 . Unlock Access 1 | . . . . . 1 . Unauthorized Hacks . | . . . . . . . Terminals . | . . . . . . . Fabricators . | . . . . . . . Repair Stations . | . . . . . . . Recycling Units . | . . . . . . . Scanalyzers . | . . . . . . . Garrison Access . | . . . . . . . Data Cores Recovered . | . . . . . . . Used . | . . . . . . . Hacking Detections 5 | . . . . . 5 . Full Trace Events 2 | . . . . . 2 . Feedback Events . | . . . . . . . Feedback Blocked . | . . . . . . . Robot Schematics Acquired . | . . . . . . . Robots Built . | . . . . . . . Authchips . | . . . . . . . Time . | . . . . . . . Total Robot Build Rating . | . . . . . . . Part Schematics Acquired . | . . . . . . . Parts Built . | . . . . . . . Authchips . | . . . . . . . Time . | . . . . . . . Total Part Build Rating . | . . . . . . . Parts Repaired . | . . . . . . . Time . | . . . . . . . Parts Recycled . | . . . . . . . Recycled Matter . | . . . . . . . Retrieved Matter . | . . . . . . . Retrieved Components . | . . . . . . . Parts Scanalyzed . | . . . . . . . Part Schematics Acquired . | . . . . . . . Parts Damaged . | . . . . . . . Bothacking | -11 -10 -10 -10 -9 -8 -8 ------------ Run | Yrd Mat Min Exi Min Mat Gar Used RIF Installer . | . . . . . . . Robots Hacked . | . . . . . . . Non-combat . | . . . . . . . Combat . | . . . . . . . Robot Hacks Applied . | . . . . . . . Relay Couplers Released . | . . . . . . . Fabnet Peak Effective % . | . . . . . . . Robots Rewired . | . . . . . . . Allies Hacked . | . . . . . . . Hacks Repelled . | . . . . . . . Allies | -11 -10 -10 -10 -9 -8 -8 -------- Run | Yrd Mat Min Exi Min Mat Gar Total Allies . | . . . . . . . Largest Group . | . . . . . . . Highest-Rated Group . | . . . . . . . Highest-Rated Ally . | . . . . . . . Total Orders . | . . . . . . . Ally Attacks . | . . . . . . . Total Damage . | . . . . . . . Kills . | . . . . . . . Allies Corrupted . | . . . . . . . Allies Melted . | . . . . . . . Intel | -11 -10 -10 -10 -9 -8 -8 ------- Run | Yrd Mat Min Exi Min Mat Gar Robot Analysis Total . | . . . . . . . Derelict Logs Recovered 1 | . . 1 . . . . Drone Launches . | . . . . . . . Drone Recoveries . | . . . . . . . Exploration | -11 -10 -10 -10 -9 -8 -8 ------------- Run | Yrd Mat Min Exi Min Mat Gar Turns Passed 3347 | 263 518 526 404 400 747 489 Spaces Moved 1566 | 138 293 251 212 139 327 206 Core 20 | 20 . . . . . . Treads 412 | . . . . . 206 206 Legs 1095 | 118 293 251 212 139 82 . Wheels 39 | . . . . . 39 . Hover . | . . . . . . . Flight . | . . . . . . . Fastest Speed 50 | 50 120 190 190 120 100 163 Average Speed 167 | 128 154 190 190 152 174 163 Slowest Speed 330 | 200 190 190 190 260 330 163 Overloaded Moves . | . . . . . . . Propulsion Burnouts . | . . . . . . . Robots Hopped . | . . . . . . . Cave-ins Triggered . | . . . . . . . Exploration Rate (%) 35 | 10 47 52 61 29 25 24 Regions Visited 6 Branch Regions 3 Pre-discovered Areas . | . . . . . . . Known Exits Taken 1 | . . . . . 1 . Unknown Exits Taken 5 | 1 1 1 1 1 . . Scrap Searched . | . . . . . . . Spaces Dug 6 | . . . . . 6 . Terrain Destroyed 127 | . 16 . . 43 25 43 Melee . | . . . . . . . Projectile 19 | . . . . 3 16 . AOE 108 | . 16 . . 40 9 43 Terrain Rammed . | . . . . . . . Walls Destroyed . | . . . . . . . Machines Disabled . | . . . . . . . Actions | -11 -10 -10 -10 -9 -8 -8 --------- Run | Yrd Mat Min Exi Min Mat Gar Total 2140 | 172 349 289 216 295 493 326 Wait 333 | . 30 21 . 119 101 62 Move 1561 | 137 292 250 211 138 327 206 Hop . | . . . . . . . Pick Up 26 | 4 7 5 1 2 6 1 Fast Attach 24 | 7 . . . 4 10 3 Attach 6 | . . . . 1 3 2 Detach 5 | . . . . 2 2 1 Swap 26 | . 8 1 . 4 11 2 Drop 30 | . 4 5 4 4 9 4 Fire 121 | 24 8 7 . 20 23 39 Melee . | . . . . . . . Ram 2 | . . . . . 1 1 Kick 1 | . . . . 1 . . Crush 5 | . . . . . . 5 Escape Stasis . | . . . . . . . Rewire . | . . . . . . . Trap . | . . . . . . . Miscellaneous . | . . . . . . . Route ------- -11/Scrapyard -10/Materials (discovered 2 exits: [*Mat] / *Min) -10/Mines -10/Exiles -9/Mines -8/Materials (discovered 2 exits: [*Fac] / Gar) -8/Garrison History --------- Turn | Location | Event 51 | -11/Scrapyard | Discovered new exit (range 14) 264 | -11/Scrapyard | Entered Materials 314 | -10/Materials | Build established: Mutant 583 | -10/Materials | Discovered new exit (range 15) 761 | -10/Materials | Discovered new exit (range 8) 782 | -10/Materials | Entered Mines 1013 | -10/Mines | Learned 2 Materials zone layouts 1133 | -10/Mines | Met a Derelict shopkeep closing up shop 1257 | -10/Mines | Found a hidden stash of uninstalled traps 1299 | -10/Mines | Deemed a non-threat by the Exiles lab entrance 1301 | -10/Mines | Discovered new exit (range 5) 1308 | -10/Mines | Entered Exiles 1354 | -10/Exiles | Met 8R-AWN 1386 | -10/Exiles | Met EX-HEX 1441 | -10/Exiles | Met EX-BIN 1468 | -10/Exiles | Aligned with FarCom system 1470 | -10/Exiles | Given EX-Vault access code 1517 | -10/Exiles | Opened EX-Vault 1531 | -10/Exiles | Found XL Autogun Array 1572 | -10/Exiles | Warned to stay clear of 0b10 Research branches 1623 | -10/Exiles | Met EX-DEC 1693 | -10/Exiles | Discovered new exit (range 10) 1712 | -10/Exiles | Left Exiles lab with XL Autogun Array 1712 | -10/Exiles | Entered Mines 1729 | -9/Mines | Core integrity fell below 50% 1812 | -9/Mines | Received a Rocket Launcher from a helpful Derelict 2019 | -9/Mines | Assembled infested the area 2024 | -9/Mines | Assisted by a Guerilla fighting off Assembled 2102 | -9/Mines | Discovered new exit (range 5) 2112 | -9/Mines | Entered Materials 2112 | -8/Materials | Evolved 4 slots: Propulsion x1, Utility x1, Weapon x2 2499 | -8/Materials | Discovered new exit (range 16) 2859 | -8/Materials | Identified exit to Garrison 2859 | -8/Materials | Entered Garrison 2902 | -8/Garrison | Triggered checkpoint 3348 | -8/Garrison | Self-destructed Last Messages --------------- 03215_ Acquired XL Autogun Array. 03216_ Destroyed Gravmag System. 03216_ Destroyed Mic. Nuclear Core. 03217_ P-60 Hacker destroyed. 03222_ Acquired 46 matter. 03232_ %RFD 2 K8PL9RWDAIAR HP%Z3LJ 03260_ System corrupted: Matter fused (-10). 03262_ Acquired Remote Datajack. 03281_ Dropped Mic. Nuclear Core. 03286_ System corrupted: Heat flow error (+227). 03287_ Overheating: Energy bleed (-16). 03331_ Dropped XL Autogun Array. 03335_ Critical hit (Burn: +37). 03338_ System corrupted: Heat flow error (+109). 03342_ Slammed into L-31 Rogue. 03342_ Lgt. Treads destroyed. 03343_ Arm. Treads destroyed. 03343_ Slammed into L-31 Rogue. 03345_ Lgt. Treads destroyed. 03345_ Slammed into L-31 Rogue. Map ----- +----------------------------------------------------+ | ??# ### =# #??????????# #????????????????????? | | ### # #??????????# #????????????????????? | | ## #### ############## #????????????????????? | | #????????????????????? | | ## #????????????????????? | | ## #????????????????????? | | ########### ############# #????????????????????? | | #???????# #???????????# #????????????????????? | | ???????# #???????????# #????????????????????? | | ???????# #???????????# #????????????????????? | | ???????# ###???????????# #????????????????????? | | ???????# ??????????????# #????????????????????? | | ???????# ??????????????# #????????????????????? | | ???????###??????????????# #????????????????????? | | ????????????????????????# #????????????????????? | | ????????????????????????# #????????????????????? | | ????????????????????????# #????????????????????? | | ????????????????????????# #????????????????????? | | ????????????????????????# #????????????????????? | | ????????????????????????# #????????????????????? | | ????????????????????????# #????????????????????? | | ?????????????????######## #????????????????????? | | ?????????????????#!!+! ## #????????????g???????? | | ??????????????Y??# !#!!## #############""""## ?? | | ?????????????????#;###+## ^g ? | | ?????????????????#!=!= *l@ ^ ? | | ?????????????????#####;##[ g ^ ? | | ????????????????????#!!############# ## ## ?? | | ????????????????????#! #???????????? #???? #???? | | ????????????????????####??????????C?? ????????? | | ?????????????????????????????????????? ??????? | | ??????????????????????????????????????? ????? | | ???????????????????????????????????????? ???? | | ????????????????????????????????????????? #???? | | ?????????????????????????????????????g??? #???? | | ?????????????????????????????????????????? ????? | | ?????????????????????????????????????????????????? | | ?????????????????????????????????????????????????? | | ?????????????????????????????????????????????????? | | ?????????????????????????????????????????????????? | | ?????????????????????????????????????????????????? | | ?????????????????????????????????????????????????? | | ?????????????????????????????????????????????????? | | ?????????????????????????????????????????????????? | | ?????????????????????????????????????????????????? | | ?????????????????????????????????????????????????? | | ?????????????????????????????????????????????????? | | ?????????????????????????????????????????????????? | | ?????????????????????????????????????????????????? | | ?????????????????????????????????????????????????? | +----------------------------------------------------+ Best States ------------- Heat Dissipation 31 Energy Generation 15 Energy Capacity 250 Matter Stores 300 Matter Capacity 300 Sight Range 16 Terrain Scan Density 10 Armor Coverage 150 Core Shielding 20 Evasion (%) 55 Recoil Reduction 3 Offensive Hacking 10 Item Schematics ----------------- None Robot Schematics ------------------ None Fabricated ------------ Nothing Alien Tech Used ----------------- None Achievements -------------- None Challenges ------------ None Game ------ Seed NetworkTacticalExpander Manual? 0 Play Time 00:17:22 Cumulative 102.7 hours Start 2025.03.11 @ 23:05:01 End 2025.03.11 @ 23:19:45 Sessions 1 Manual Loads 0 Difficulty Rogue Special Mode None Game No. 123 Rogue 75 Adventurer 47 Explorer 1 Win Type - Total 10 Types 7/0/0/1/0/0/2/0/0 Lore% 53 Gallery% 60 Achievement% 63 Wizard Run 0 Options --------- Layout 0 ASCII 0 Keyboard 1 Movement Numpad Keybinds 0 Fullscreen 2 Font 18/SmallcapsGlow Map View 76x50 Zoom Use 0% Tactical HUD 1 Map Filters NONE Filters NONE Steam 1 RUN: 2c89b7e6-0a49-4f9c-9390-0f76393c32b7